[Event "Int SVK-ch Open 2020"]
[Site "Drienica"]
[Date "2020.08.09"]
[Round "3.10"]
[White "Juhar, Roman"]
[Black "Sankova, Stella"]
[Result "1-0"]
[ECO "D39"]
[WhiteElo "2225"]
[BlackElo "1990"]
[Annotator "RC"]
[PlyCount "105"]
[EventDate "2020.08.07"]
[EventType "swiss"]
[EventCountry "SVK"]
[SourceTitle "playchess.com"]
[Source "ChessBase"]
[SourceQuality "1"]
[TimeControl "40/5400+30:1800+30"]

1. d4 {[%emt 0:00:00]} Nf6 {[%emt 0:00:00]} 2. c4 {[%emt 0:00:00]} e6 {[%emt 0:00:00]} 3. Nf3 {[%emt 0:00:25]} d5 {[%emt 0:00:14]} 4. Bg5 {[%emt 0:00:07]} Bb4+ {[%emt 0:02:57]} 5. Nc3 {[%emt 0:00:09]} dxc4 {[%emt 0:01:20]} 6. e4 {[%emt 0:02:33]} c5 {[%emt 0:00:04]} 7. e5 {[%emt 0:05:03]} cxd4 {[%emt 0:00:15]} 8. exf6 {[%emt 0:01:45]} gxf6 {[%emt 0:00:43]} 9. Bh4 {[%emt 0:09:03]} Nc6 {[%emt 0:05:04]} 10. a3 {[%emt 0:01:42]} Ba5 {[%emt 0:04:54]} 11. Nxd4 {[%emt 0:04:47]} Nxd4 {[%emt 0:02:12]} 12. Bxc4 {[%emt 0:00:17]} Nf5 {[%emt 0:18:23]} 13. Bxf6 {[%emt 0:04:26]} Qxf6 {[%emt 0:00:38]} 14. Qa4+ {[%emt 0:00:05]} Bd7 {[%emt 0:00:12]} 15. Qxa5 {[%emt 0:00:06]} b6 {[%emt 0:10:23]} 16. Qa6 {[%emt 0:02:28]} Qe5+ {[%emt 0:00:54]} 17. Be2 {[%emt 0:01:20]} Nd4 {[%emt 0:03:13]} 18. O-O-O {[%emt 0:04:34]} Rc8 {[%emt 0:07:24]} 19. Rhe1 {[%emt 0:05:13]} O-O {[%emt 0:02:40]} 20. Qd3 {[%emt 0:03:43]} Nb5 {[%emt 0:09:10]} 21. Qxh7+ {[%emt 0:09:49]} Kxh7 {[%emt 0:00:10]} 22. Bd3+ {[%emt 0:00:04]} Kg7 {[%emt 0:01:53]} 23. Rxe5 {[%emt 0:01:22]} Nxc3 {[%emt 0:00:16]} 24. bxc3 {[%emt 0:00:07]} Rxc3+ {[%emt 0:00:11]} 25. Kb2 {[%emt 0:00:06]} Rfc8 {[%emt 0:00:43]} 26. Ba6 {[%emt 0:00:30]} Rc2+ {[%emt 0:08:52]} 27. Kb1 {[%emt 0:00:20]} Rxf2 {[%emt 0:01:28]} 28. Bxc8 {[%emt 0:12:32]} Bxc8 {[%emt 0:00:05]} 29. Rg5+ {[%emt 0:01:46]} Kf6 {[%emt 0:00:09]} 30. h4 {[%emt 0:00:26]} Bb7 {[%emt 0:00:48]} 31. g3 {[%emt 0:05:02]} Be4+ {[%emt 0:03:15]} 32. Ka1 {[%emt 0:00:14]} Rf3 {[%emt 0:01:49]} 33. Kb2 {[%emt 0:01:58]} Bd5 {[%emt 0:00:18]} 34. a4 {[%emt 0:04:31]} Rb3+ {[%emt 0:01:24]} 35. Kc2 {[%emt 0:00:18]} Rb4 {[%emt 0:06:52]} 36. Ra1 {[%emt 0:03:34]} a5 {[%emt 0:01:43]} 37. Rg8 {[%emt 0:01:56]} Bb3+ {[%emt 0:02:15]} 38. Kc3 {[%emt 0:00:19]} Bxa4 {[%emt 0:00:11]} 39. h5 {[%emt 0:00:29]} Rb3+ {[%emt 0:03:39]} 40. Kd2 {[%emt 0:01:44]} Bc6 {[%emt 0:01:18]} 41. Rc1 {[%emt 0:33:11]} Bd5 {[%emt 0:31:36]} 42. h6 {[%emt 0:00:34]} Be4 {[%emt 0:00:00]} 43. Rf1+ {[%emt 0:00:00]} Ke7 {[%emt 0:00:00]} 44. Rf4 {[%emt 0:00:00]} Rb2+ {[%emt 0:00:00]} 45. Kc3 {[%emt 0:00:00]} Rh2 {[%emt 0:00:00]} 46. Rxe4 {[%emt 0:00:00]} Rxh6 {[%emt 0:00:00]} 47. Rb8 {[%emt 0:00:00]} Rg6 {[%emt 0:00:00]} 48. g4 {[%emt 0:00:00]} e5 {[%emt 0:00:00]} 49. Rxe5+ {[%emt 0:00:00]} Kd6 {[%emt 0:00:00]} 50. Re4 {[%emt 0:00:00]} Kd5 {[%emt 0:00:00]} 51. Rf4 {[%emt 0:00:00]} Kc5 {[%emt 0:00:00]} 52. Rf8 {[%emt 0:00:00]} b5 {[%emt 0:00:00]} 53. R8xf7 {[%emt 0:00:00]} 1-0

[Event "Int SVK-ch Open 2020"]
[Site "Drienica"]
[Date "2020.08.09"]
[Round "3.10"]
[White "Cisarik, Pavol"]
[Black "Geffert, Anton"]
[Result "0-1"]
[ECO "B52"]
[WhiteElo "1635"]
[BlackElo "1909"]
[Annotator "ChessBase"]
[PlyCount "52"]
[EventDate "2020.08.07"]
[EventType "swiss"]
[EventCountry "SVK"]
[SourceTitle "playchess.com"]
[Source "ChessBase"]
[SourceQuality "1"]
[TimeControl "40/5400+30:1800+30"]

1. e4 {[%emt 0:00:00]} c5 {[%emt 0:00:00]} 2. Nf3 {[%emt 0:00:15]} d6 {[%emt 0:00:00]} 3. Bb5+ {[%emt 0:00:31]} Bd7 {[%emt 0:00:14]} 4. Bxd7+ {[%emt 0:00:33]} Nxd7 {[%emt 0:00:39]} 5. c4 {[%emt 0:01:33]} Ngf6 {[%emt 0:00:47]} 6. Nc3 {[%emt 0:00:09]} e6 {[%emt 0:00:15]} 7. O-O {[%emt 0:01:19]} Be7 {[%emt 0:00:15]} 8. d4 {[%emt 0:03:44]} cxd4 {[%emt 0:00:52]} 9. Qxd4 {[%emt 0:01:36]} O-O {[%emt 0:00:37]} 10. Bg5 {[%emt 0:04:02]} h6 {[%emt 0:00:20]} 11. Bxf6 {[%emt 0:02:56]} Nxf6 {[%emt 0:00:15]} 12. Rad1 {[%emt 0:05:28]} a6 {[%emt 0:02:59]} 13. Rfe1 {[%emt 0:07:10]} Qc7 {[%emt 0:03:05]} 14. b3 {[%emt 0:02:00]} Rfd8 {[%emt 0:01:36]} 15. Na4 {[%emt 0:10:58]} b5 {[%emt 0:03:11]} 16. cxb5 {[%emt 0:01:22]} axb5 {[%emt 0:00:12]} 17. Rc1 {[%emt 0:00:29]} Qa5 {[%emt 0:01:05]} 18. Nc3 {[%emt 0:04:23]} d5 {[%emt 0:10:11]} 19. e5 {[%emt 0:00:37]} b4 {[%emt 0:02:00]} 20. Na4 {[%emt 0:01:32]} Ne4 {[%emt 0:00:43]} 21. Rc6 {[%emt 0:01:59]} Rac8 {[%emt 0:05:26]} 22. Rec1 {[%emt 0:01:18]} Nc3 {[%emt 0:01:55]} 23. R1xc3 {[%emt 0:19:49]} bxc3 {[%emt 0:01:27]} 24. Qxc3 {[%emt 0:02:05]} Qa8 {[%emt 0:05:07]} 25. Nd4 {[%emt 0:03:37]} Bb4 {[%emt 0:11:12]} 26. Qc2 {[%emt 0:02:43]} Rxc6 {[%emt 0:04:02]} 0-1

[Event "Int SVK-ch Open 2020"]
[Site "Drienica"]
[Date "2020.08.09"]
[Round "3.11"]
[White "Brnusak, Tomas"]
[Black "Hros, Roman"]
[Result "1-0"]
[ECO "A37"]
[WhiteElo "2044"]
[BlackElo "2199"]
[Annotator "ChessBase"]
[PlyCount "59"]
[EventDate "2020.08.07"]
[EventType "swiss"]
[EventCountry "SVK"]
[SourceTitle "playchess.com"]
[Source "ChessBase"]
[SourceQuality "1"]
[TimeControl "40/5400+30:1800+30"]

1. e4 {[%emt 0:00:00]} c5 {[%emt 0:01:39]} 2. Nf3 {[%emt 0:00:12]} Nc6 {[%emt 0:00:07]} 3. c4 {[%emt 0:00:36]} e5 {[%emt 0:03:07]} 4. Nc3 {[%emt 0:00:28]} d6 {[%emt 0:09:53]} 5. d3 {[%emt 0:01:12]} g6 {[%emt 0:01:34]} 6. g3 {[%emt 0:02:29]} Bg7 {[%emt 0:06:14]} 7. Bg2 {[%emt 0:00:19]} Nge7 {[%emt 0:00:30]} 8. O-O {[%emt 0:02:00]} O-O {[%emt 0:00:17]} 9. a3 {[%emt 0:01:53]} h6 {[%emt 0:04:07]} 10. Rb1 {[%emt 0:03:57]} a5 {[%emt 0:03:12]} 11. Bd2 {[%emt 0:01:24]} f5 {[%emt 0:00:35]} 12. Nd5 {[%emt 0:00:49]} a4 {[%emt 0:23:10]} 13. b4 {[%emt 0:07:36]} axb3 {[%emt 0:00:12]} 14. Rxb3 {[%emt 0:00:13]} Nxd5 {[%emt 0:03:55]} 15. cxd5 {[%emt 0:01:54]} Ne7 {[%emt 0:06:30]} 16. Qa1 {[%emt 0:29:36]} Ra4 {[%emt 0:08:14]} 17. Re1 {[%emt 0:06:21]} c4 {[%emt 0:06:36]} 18. Rb4 {[%emt 0:04:37]} Rxb4 {[%emt 0:00:36]} 19. Bxb4 {[%emt 0:00:07]} cxd3 {[%emt 0:00:43]} 20. Nd2 {[%emt 0:00:10]} f4 {[%emt 0:07:32]} 21. Qc3 {[%emt 0:08:09]} b5 {[%emt 0:03:38]} 22. Ba5 {[%emt 0:04:50]} Qd7 {[%emt 0:00:59]} 23. Qc7 {[%emt 0:00:06]} Bf6 {[%emt 0:04:05]} 24. Qxd7 {[%emt 0:02:05]} Bxd7 {[%emt 0:00:31]} 25. Bb4 {[%emt 0:00:11]} fxg3 {[%emt 0:03:29]} 26. hxg3 {[%emt 0:00:07]} Rc8 {[%emt 0:00:50]} 27. Bf1 {[%emt 0:01:06]} Bg5 {[%emt 0:00:26]} 28. Bxd3 {[%emt 0:00:04]} Kf7 {[%emt 0:00:41]} 29. Nf3 {[%emt 0:00:33]} Rc1 {[%emt 0:00:36]} 30. Nxg5+ {[%emt 0:00:08]} 1-0

[Event "Int SVK-ch Open 2020"]
[Site "Drienica"]
[Date "2020.08.09"]
[Round "3.11"]
[White "Janik, Marek Tobias"]
[Black "Zahradnik, Vladimir"]
[Result "1/2-1/2"]
[ECO "A22"]
[WhiteElo "1549"]
[BlackElo "1874"]
[Annotator "NA"]
[PlyCount "114"]
[EventDate "2020.08.07"]
[EventType "swiss"]
[EventCountry "SVK"]
[SourceTitle "playchess.com"]
[Source "ChessBase"]
[SourceQuality "1"]
[TimeControl "40/5400+30:1800+30"]

1. c4 {[%emt 0:00:00]} e5 {[%emt 0:00:06]} 2. Nc3 {[%emt 0:00:00]} Nf6 {[%emt 0:00:51]} 3. g3 {[%emt 0:00:00]} d5 {[%emt 0:00:51]} 4. cxd5 {[%emt 0:00:09]} Nxd5 {[%emt 0:00:08]} 5. Bg2 {[%emt 0:00:04]} Nb6 {[%emt 0:00:32]} 6. Nf3 {[%emt 0:00:23]} Nc6 {[%emt 0:00:28]} 7. a3 {[%emt 0:04:59]} a5 {[%emt 0:02:28] A29: English Opening: Four Knights Variation with 4 g3.} 8. d3 {[%emt 0:01:13]} Be7 {[%emt 0:00:13]} 9. Be3 {[%emt 0:03:37]} Be6 {[%emt 0:02:07]} 10. Rc1 {[%emt 0:02:36] [#]} f6 $146 {[%emt 0:04:12]} ({Predecessor:} 10... Nd5 11. Nxd5 Bxd5 12. Qa4 O-O 13. O-O Re8 14. Rfe1 {½-½ (14) Lorens Ristovic,L (2078)-Jovanovic,Z (2169) Belgrade 2019}) 11. Ne4 {[%emt 0:03:43]} Nd7 {[%emt 0:01:56]} 12. Nc5 {[%emt 0:02:02]} Nxc5 {[%emt 0:00:46]} 13. Bxc5 {[%emt 0:00:06]} a4 {[%emt 0:02:56]} 14. d4 {[%emt 0:10:20]} e4 {[%emt 0:04:29]} 15. Ng1 {[%emt 0:04:06]} f5 {[%emt 0:00:37]} 16. e3 {[%emt 0:00:07]} O-O {[%emt 0:00:25]} 17. Bxe7 {[%emt 0:00:33]} Nxe7 {[%emt 0:00:00]} 18. Ne2 {[%emt 0:00:00]} Bb3 {[%emt 0:00:14]} 19. Qd2 {[%emt 0:00:00]} Nd5 {[%emt 0:00:15]} 20. O-O {[%emt 0:02:09]} c6 {[%emt 0:02:36]} 21. Nf4 {[%emt 0:05:17]} Nf6 {[%emt 0:05:34]} 22. Rc3 {[%emt 0:06:55]} Qe8 {[%emt 0:02:47]} 23. Re1 {[%emt 0:08:59]} g5 {[%emt 0:00:30]} 24. Ne2 {[%emt 0:02:28]} Bd5 {[%emt 0:04:34]} 25. Rcc1 {[%emt 0:00:39]} Qe6 {[%emt 0:00:41]} 26. Nc3 {[%emt 0:02:12]} Bb3 {[%emt 0:00:41]} 27. f4 {[%emt 0:04:01]} gxf4 {[%emt 0:03:31]} 28. gxf4 {[%emt 0:00:09]} Kh8 {[%emt 0:02:21]} 29. Kh1 {[%emt 0:02:00]} Rg8 {[%emt 0:01:14]} 30. Rg1 {[%emt 0:02:58]} Rg6 {[%emt 0:02:25]} 31. Bh3 {[%emt 0:02:56]} Rag8 {[%emt 0:02:20]} 32. Qf2 {[%emt 0:00:18]} Ng4 {[%emt 0:01:12]} 33. Bxg4 {[%emt 0:00:06]} Rxg4 {[%emt 0:00:10]} 34. Rxg4 {[%emt 0:01:51]} Rxg4 {[%emt 0:00:08]} 35. Rg1 {[%emt 0:00:05]} Rxg1+ {[%emt 0:10:41]} 36. Kxg1 {[%emt 0:01:44]} b5 {[%emt 0:00:24]} 37. Qh4 {[%emt 0:01:50]} h6 {[%emt 0:02:50]} 38. Kf2 {[%emt 0:01:43]} Bc4 {[%emt 0:01:12]} 39. Qg3 {[%emt 0:09:48]} Qf6 {[%emt 0:02:52]} 40. Ke1 {[%emt 0:02:56]} Bf7 {[%emt 0:00:49]} 41. Kd2 {[%emt 0:35:00]} Qe7 {[%emt 0:32:54]} 42. Qh3 {[%emt 0:01:37]} Qf6 {[%emt 0:00:10]} 43. Qg3 {[%emt 0:00:32]} Kh7 {[%emt 0:00:28]} 44. Qh3 {[%emt 0:02:46]} Kg7 {[%emt 0:00:22]} 45. Qg2+ {[%emt 0:02:26]} Kf8 {[%emt 0:00:29]} 46. Qg3 {[%emt 0:01:18]} Ke7 {[%emt 0:01:46]} 47. Qg2 {[%emt 0:01:24]} Kd7 {[%emt 0:01:16]} 48. Qf1 {[%emt 0:00:00]} Bc4 {[%emt 0:00:00]} 49. Qh3 {[%emt 0:00:00]} Kd6 {[%emt 0:00:00]} 50. Qh5 {[%emt 0:00:00]} Kd7 {[%emt 0:00:00]} 51. Qh3 {[%emt 0:00:00]} Kc7 {[%emt 0:00:00]} 52. Qh5 {[%emt 0:00:00]} Bf7 {[%emt 0:00:00]} 53. Qh3 {[%emt 0:00:00]} Kb6 {[%emt 0:00:00]} 54. Qf1 {[%emt 0:00:00]} Bc4 {[%emt 0:00:00]} 55. Qc1 {[%emt 0:00:00]} Ka5 {[%emt 0:00:00]} 56. Qg1 {[%emt 0:01:31]} Bd3 {[%emt 0:00:00]} 57. Qg8 $11 {[%emt 0:00:26]} Bc4 1/2-1/2

[Event "Int SVK-ch Open 2020"]
[Site "Drienica"]
[Date "2020.08.09"]
[Round "3.12"]
[White "Sevcikova, Lucia"]
[Black "Ivanecka, Natalia"]
[Result "1-0"]
[ECO "C57"]
[WhiteElo "2017"]
[BlackElo "1641"]
[Annotator "ChessBase"]
[PlyCount "103"]
[EventDate "2020.08.07"]
[EventType "swiss"]
[EventCountry "SVK"]
[SourceTitle "playchess.com"]
[Source "ChessBase"]
[SourceQuality "1"]
[TimeControl "40/5400+30:1800+30"]

1. e4 e5 2. Nf3 Nc6 3. Bc4 Nf6 4. Ng5 d5 5. exd5 Nd4 6. c3 b5 7. Bf1 Nxd5 8. cxd4 Qxg5 9. Bxb5+ Bd7 10. Bxd7+ Kxd7 11. O-O Nf4 12. Qf3 Bd6 13. dxe5 Qxe5 14. g3 Ne2+ 15. Kh1 f5 16. Nc3 Nd4 17. Qd5 g5 18. Qxe5 Bxe5 19. f4 gxf4 20. gxf4 Bd6 21. d3 Rhg8 22. Bd2 Rg4 23. Rae1 Rag8 24. Nd5 R8g6 25. Bc3 c5 26. Ne3 Rxf4 27. Rxf4 Bxf4 28. Bxd4 cxd4 29. Nxf5 Ra6 30. a3 Ra4 31. Re7+ Kc6 32. Re4 Bc1 33. Nxd4+ Kb6 34. Re6+ Kc7 35. Rc6+ Kd7 36. Rxc1 Rxd4 37. Rc3 Kd6 38. Kg2 Rf4 39. Rc4 Rf7 40. h3 Kd5 41. b4 h6 42. Kg3 Rf1 43. Rc7 Rd1 44. Rxa7 Rxd3+ 45. Kg4 Kc4 46. Ra6 h5+ 47. Kh4 Kb5 48. Ra5+ Kc4 49. b5 Rd5 50. a4 Kb4 51. Ra6 Re5 52. b6 1-0

[Event "Int SVK-ch Open 2020"]
[Site "Drienica"]
[Date "2020.08.09"]
[Round "3.13"]
[White "Bombek, Peter"]
[Black "Tomcik, Milan"]
[Result "1-0"]
[ECO "A49"]
[WhiteElo "2181"]
[BlackElo "1963"]
[Annotator "ChessBase"]
[PlyCount "101"]
[EventDate "2020.08.07"]
[EventType "swiss"]
[EventCountry "SVK"]
[SourceTitle "playchess.com"]
[Source "ChessBase"]
[SourceQuality "1"]
[TimeControl "40/5400+30:1800+30"]

1. d4 {[%emt 0:00:00]} Nf6 {[%emt 0:00:00]} 2. Nf3 {[%emt 0:00:00]} g6 {[%emt 0:00:00]} 3. g3 {[%emt 0:00:06]} Bg7 {[%emt 0:00:00]} 4. Bg2 {[%emt 0:00:05]} O-O {[%emt 0:00:08]} 5. O-O {[%emt 0:00:02]} d6 {[%emt 0:00:10]} 6. a4 {[%emt 0:00:07]} a5 {[%emt 0:00:20]} 7. b3 {[%emt 0:00:35]} Na6 {[%emt 0:00:43]} 8. Nbd2 {[%emt 0:01:02]} d5 {[%emt 0:09:10]} 9. Ba3 {[%emt 0:05:24]} c6 {[%emt 0:03:33]} 10. Re1 {[%emt 0:01:55]} Ne4 {[%emt 0:00:45]} 11. Nxe4 {[%emt 0:02:54]} dxe4 {[%emt 0:00:09]} 12. Ne5 {[%emt 0:00:46]} f6 {[%emt 0:09:04]} 13. Nc4 {[%emt 0:04:00]} f5 {[%emt 0:00:34]} 14. e3 {[%emt 0:00:56]} b5 {[%emt 0:07:55]} 15. axb5 {[%emt 0:04:46]} cxb5 {[%emt 0:00:06]} 16. Nxa5 {[%emt 0:00:19]} Qxa5 {[%emt 0:12:52]} 17. Bxe7 {[%emt 0:00:46]} Qc3 {[%emt 0:00:13]} 18. Bxf8 {[%emt 0:01:20]} Bxf8 {[%emt 0:00:33]} 19. Ra2 {[%emt 0:02:12]} Bb4 {[%emt 0:06:07]} 20. Rf1 {[%emt 0:01:24]} Rb8 {[%emt 0:00:19]} 21. Qa1 {[%emt 0:02:14]} Rb6 {[%emt 0:10:07]} 22. Qxc3 {[%emt 0:03:28]} Bxc3 {[%emt 0:00:05]} 23. f3 {[%emt 0:00:46]} exf3 {[%emt 0:01:34]} 24. Bxf3 {[%emt 0:00:25]} Kg7 {[%emt 0:00:38]} 25. Rd1 {[%emt 0:05:38]} Kf6 {[%emt 0:03:06]} 26. Rd3 {[%emt 0:01:31]} b4 {[%emt 0:01:43]} 27. Kf2 {[%emt 0:06:22]} h6 {[%emt 0:00:19]} 28. h4 {[%emt 0:01:03]} Bd7 {[%emt 0:02:43]} 29. Rd1 {[%emt 0:04:12]} Bc8 {[%emt 0:00:26]} 30. Ra5 {[%emt 0:00:59]} Rd6 {[%emt 0:05:26]} 31. Be2 {[%emt 0:05:50]} Ke7 {[%emt 0:02:34]} 32. h5 {[%emt 0:03:35]} g5 {[%emt 0:02:22]} 33. Re5+ {[%emt 0:09:27]} Kf6 {[%emt 0:04:47]} 34. Re8 {[%emt 0:00:57]} Be6 {[%emt 0:01:23]} 35. Rh8 {[%emt 0:02:07]} Kg7 {[%emt 0:01:56]} 36. Ra8 {[%emt 0:01:59]} Nc7 {[%emt 0:02:16]} 37. Ra7 {[%emt 0:00:32]} Rd7 {[%emt 0:03:16]} 38. d5 {[%emt 0:02:32]} Nxd5 {[%emt 0:02:05]} 39. Rxd7+ {[%emt 0:00:41]} Bxd7 {[%emt 0:00:07]} 40. Rxd5 {[%emt 0:00:12]} Be6 {[%emt 0:00:15]} 41. Rd6 {[%emt 0:30:59]} Bf7 {[%emt 0:30:21]} 42. Bd3 {[%emt 0:04:28]} f4 {[%emt 0:05:16]} 43. exf4 {[%emt 0:05:22]} gxf4 {[%emt 0:00:13]} 44. g4 {[%emt 0:03:10]} Be5 {[%emt 0:00:52]} 45. Rd7 {[%emt 0:00:22]} Kf6 {[%emt 0:00:43]} 46. Kf3 {[%emt 0:01:38]} Be6 {[%emt 0:03:13]} 47. Ra7 {[%emt 0:03:47]} Bd6 {[%emt 0:00:00]} 48. Ra5 {[%emt 0:00:00]} Bd7 {[%emt 0:00:00]} 49. Ra6 {[%emt 0:00:00]} Ke5 {[%emt 0:00:00]} 50. Rxd6 {[%emt 0:00:00]} Kxd6 {[%emt 0:00:00]} 51. Kxf4 {[%emt 0:00:00]} 1-0

[Event "Int SVK-ch Open 2020"]
[Site "Drienica"]
[Date "2020.08.09"]
[Round "3.13"]
[White "Bakalar, Jan"]
[Black "Furman, Maximilian Jan"]
[Result "1/2-1/2"]
[ECO "A00"]
[WhiteElo "1896"]
[BlackElo "1598"]
[Annotator "NA"]
[PlyCount "74"]
[EventDate "2020.08.07"]
[EventType "swiss"]
[EventCountry "SVK"]
[SourceTitle "playchess.com"]
[Source "ChessBase"]
[SourceQuality "1"]
[TimeControl "40/5400+30:1800+30"]

1. g3 {[%emt 0:04:36]} Nf6 {[%emt 0:00:39]} 2. Bg2 {[%emt 0:00:07]} d5 {[%emt 0:00:14]} 3. Nf3 {[%emt 0:00:29]} e6 {[%emt 0:00:54]} 4. d4 {[%emt 0:00:49]} Bd6 {[%emt 0:00:36]} 5. O-O {[%emt 0:00:20]} Nbd7 {[%emt 0:00:21]} 6. b3 {[%emt 0:02:22]} O-O {[%emt 0:00:50] D02: 1 d4 d5 2 Nf3 sidelines, including 2...Nf6 3 g3 and 2...Nf6 3 Bf4.} 7. Bb2 {[%emt 0:00:36]} c6 {[%emt 0:01:01]} 8. Ne5 {[%emt 0:00:38]} Qc7 {[%emt 0:01:51] [#]} 9. f4 $146 {[%emt 0:00:13]} ({Predecessor:} 9. Nxd7 Bxd7 10. Nd2 e5 11. dxe5 Bxe5 12. Bxe5 Qxe5 13. c4 Rfe8 14. Re1 Rad8 15. Nf3 {0-1 (51) Ocytko,M (1337)-Chmielecka,A (1569) Bialystok 2011}) 9... Ne8 {[%emt 0:01:08]} 10. Nd2 {[%emt 0:04:40]} f6 {[%emt 0:05:34]} 11. Nxd7 {[%emt 0:01:08]} Bxd7 {[%emt 0:00:20]} 12. e4 {[%emt 0:00:05]} dxe4 {[%emt 0:15:11]} 13. Nxe4 {[%emt 0:00:31]} Be7 {[%emt 0:00:58]} 14. c4 {[%emt 0:00:30]} Nd6 {[%emt 0:06:05]} 15. Qe2 {[%emt 0:04:35]} Nxe4 {[%emt 0:05:11]} 16. Bxe4 {[%emt 0:03:46]} Rfe8 {[%emt 0:01:54]} 17. Qc2 {[%emt 0:02:52]} f5 {[%emt 0:02:37]} 18. Bg2 {[%emt 0:00:47]} Rad8 {[%emt 0:01:35]} 19. Rad1 {[%emt 0:02:17]} Bf6 {[%emt 0:02:02]} 20. c5 {[%emt 0:07:19]} Re7 {[%emt 0:04:06]} 21. Rfe1 {[%emt 0:03:11]} Be8 {[%emt 0:07:29]} 22. Bf3 {[%emt 0:02:48]} Bf7 {[%emt 0:05:54]} 23. b4 {[%emt 0:00:41]} a6 {[%emt 0:07:50]} 24. a4 {[%emt 0:04:33]} Be8 {[%emt 0:01:25]} 25. Be2 {[%emt 0:02:06]} Red7 {[%emt 0:02:52]} 26. Bc4 {[%emt 0:03:50]} Bf7 {[%emt 0:00:58]} 27. Bxe6 {[%emt 0:03:01]} Bxe6 {[%emt 0:00:09]} 28. Rxe6 {[%emt 0:00:15]} Bxd4+ {[%emt 0:00:05]} 29. Rxd4 {[%emt 0:01:46]} Rxd4 {[%emt 0:00:12]} 30. Bxd4 {[%emt 0:00:05]} Rxd4 {[%emt 0:00:05]} 31. Qxf5 {[%emt 0:01:06]} Qd7 {[%emt 0:04:06]} 32. Qe5 {[%emt 0:00:44]} Rd1+ {[%emt 0:04:18]} 33. Kg2 {[%emt 0:02:16]} Rd2+ {[%emt 0:00:15]} 34. Kf3 $2 {[%emt 0:08:11]} (34. Kh3 $11) 34... Qd3+ {[%emt 0:06:56]} 35. Kg4 {[%emt 0:01:51]} Qd7 {[%emt 0:00:38] [#]} 36. Kf3 $2 {[%emt 0:08:20]} (36. f5 $1 $16 {is necessary to keep the advantage.}) 36... Qd3+ {[%emt 0:00:10]} 37. Kg4 {[%emt 0:00:09]} Qd7 $16 {[%emt 0:00:06]} 1/2-1/2

[Event "Int SVK-ch Open 2020"]
[Site "Drienica"]
[Date "2020.08.09"]
[Round "3.14"]
[White "Demeter, Peter"]
[Black "Dujava, Daniel"]
[Result "0-1"]
[ECO "A13"]
[WhiteElo "2139"]
[BlackElo "2111"]
[Annotator "RC"]
[PlyCount "92"]
[EventDate "2020.08.07"]
[EventType "swiss"]
[EventCountry "SVK"]
[SourceTitle "playchess.com"]
[Source "ChessBase"]
[SourceQuality "1"]
[TimeControl "40/5400+30:1800+30"]

1. c4 {[%emt 0:00:00]} c6 {[%emt 0:00:00]} 2. g3 {[%emt 0:01:06]} d5 {[%emt 0:00:10]} 3. Bg2 {[%emt 0:00:05]} Nf6 {[%emt 0:00:24]} 4. Nf3 {[%emt 0:00:06]} e6 {[%emt 0:02:30]} 5. O-O {[%emt 0:00:25]} Be7 {[%emt 0:04:39]} 6. Qc2 {[%emt 0:04:06]} O-O {[%emt 0:04:00]} 7. b3 {[%emt 0:14:19]} Ne4 {[%emt 0:06:16]} 8. Bb2 {[%emt 0:00:30]} Bf6 {[%emt 0:02:47]} 9. d4 {[%emt 0:00:19]} Re8 {[%emt 0:13:50]} 10. Rd1 {[%emt 0:05:23]} a5 {[%emt 0:06:44]} 11. Ne5 {[%emt 0:04:43]} Nd6 {[%emt 0:01:34]} 12. c5 {[%emt 0:09:29]} Nf5 {[%emt 0:02:01]} 13. Nd2 {[%emt 0:02:14]} g6 {[%emt 0:04:32]} 14. e4 {[%emt 0:04:30]} Nh6 {[%emt 0:01:46]} 15. Ndf3 {[%emt 0:02:56]} Bg7 {[%emt 0:01:00]} 16. Nd2 {[%emt 0:18:02]} Na6 {[%emt 0:07:09]} 17. a3 {[%emt 0:02:46]} Nc7 {[%emt 0:00:42]} 18. h3 {[%emt 0:00:30]} f6 {[%emt 0:01:33]} 19. Nef3 {[%emt 0:00:22]} Nf7 {[%emt 0:06:43]} 20. e5 {[%emt 0:05:30]} fxe5 {[%emt 0:04:01]} 21. Nxe5 {[%emt 0:00:49]} Nxe5 {[%emt 0:00:36]} 22. dxe5 {[%emt 0:00:07]} Qe7 {[%emt 0:00:43]} 23. Nf3 {[%emt 0:01:42]} Na6 {[%emt 0:01:44]} 24. Bd4 {[%emt 0:09:03]} Bd7 {[%emt 0:13:34]} 25. Rac1 {[%emt 0:00:30]} Nc7 {[%emt 0:00:30]} 26. Be3 {[%emt 0:00:30]} Qf7 {[%emt 0:00:30]} 27. Bf4 {[%emt 0:00:30]} Qf5 {[%emt 0:00:30]} 28. Qd2 {[%emt 0:00:30]} Nb5 {[%emt 0:00:30]} 29. a4 {[%emt 0:01:17]} Nc7 {[%emt 0:00:21]} 30. h4 {[%emt 0:00:30]} Reb8 {[%emt 0:01:32]} 31. Rc3 {[%emt 0:04:06]} Bf8 {[%emt 0:04:34]} 32. Ng5 {[%emt 0:01:04]} Be7 {[%emt 0:02:30]} 33. Ne4 {[%emt 0:01:03]} dxe4 {[%emt 0:04:15]} 34. Qxd7 {[%emt 0:00:30]} Rd8 {[%emt 0:01:01]} 35. Qxc7 {[%emt 0:00:12]} Rxd1+ {[%emt 0:00:04]} 36. Kh2 {[%emt 0:00:09]} Qf7 {[%emt 0:00:51]} 37. Qxb7 {[%emt 0:00:14]} Rdd8 {[%emt 0:00:31]} 38. Qxc6 {[%emt 0:00:44]} Rac8 {[%emt 0:00:29]} 39. Qb6 {[%emt 0:01:10]} Bxh4 {[%emt 0:00:43]} 40. Bxe4 {[%emt 0:01:37]} Be7 {[%emt 0:00:36]} 41. Be3 {[%emt 0:07:44]} g5 {[%emt 0:05:35]} 42. Kg2 {[%emt 0:00:49]} Rd1 {[%emt 0:05:28]} 43. g4 {[%emt 0:01:42]} Bd8 {[%emt 0:08:53]} 44. Qa6 {[%emt 0:03:05]} Rc7 {[%emt 0:00:29]} 45. Qxa5 {[%emt 0:09:25]} Qg7 {[%emt 0:01:00]} 46. Qa8 {[%emt 0:00:31]} Qh6 {[%emt 0:02:19]} 0-1